[Event "Titled Tuesday Blitz July 05 Early 2022"]
[White "Kamsky, Gata"]
[Black "Barp, Alberto"]
[WhiteFideId "2000024"]
[BlackFideId "872555"]
[WhiteElo "2645"]
[BlackElo "2229"]
[Result "1-0"]
[Round "08"]
[TimeControl "180+1"]
[Date "2022.07.05"]
[WhiteClock "0:00:12"]
[BlackClock "0:00:03"]

1. d4 {[%clk 0:02:59]}  Nf6 {[%clk 0:03:00]} 2. Nf3 {[%clk 0:02:58]}  e6 {[%clk 0:03:00]} 3. Bf4 {[%clk 0:02:41]}  c5 {[%clk 0:02:59]} 4. e3 {[%clk 0:02:40]}  cxd4 {[%clk 0:02:59]} 5. exd4 {[%clk 0:02:39]}  Be7 {[%clk 0:03:00]} 6. h3 {[%clk 0:02:38]}  O-O {[%clk 0:02:58]} 7. Nbd2 {[%clk 0:02:33]}  b6 {[%clk 0:02:57]} 8. a4 {[%clk 0:02:32]}  Ba6 {[%clk 0:02:54]} 9. Bb5 {[%clk 0:02:20]}  d6 {[%clk 0:02:51]} 10. O-O {[%clk 0:02:18]}  Nd5 {[%clk 0:02:45]} 11. Bh2 {[%clk 0:02:16]}  Nc7 {[%clk 0:02:43]} 12. Bxa6 {[%clk 0:01:58]}  Nbxa6 {[%clk 0:02:42]} 13. Qe2 {[%clk 0:01:55]}  Qd7 {[%clk 0:02:40]} 14. c4 {[%clk 0:01:47]}  Nb4 {[%clk 0:02:38]} 15. b3 {[%clk 0:01:47]}  a5 {[%clk 0:02:34]} 16. Rad1 {[%clk 0:01:43]}  Rfd8 {[%clk 0:02:25]} 17. Ne4 {[%clk 0:01:42]}  Rac8 {[%clk 0:02:18]} 18. Rfe1 {[%clk 0:01:40]}  d5 {[%clk 0:02:13]} 19. Ne5 {[%clk 0:01:36]}  Qe8 {[%clk 0:02:13]} 20. Nc3 {[%clk 0:01:35]}  Bd6 {[%clk 0:02:00]} 21. f4 {[%clk 0:01:14]}  dxc4 {[%clk 0:01:55]} 22. bxc4 {[%clk 0:01:12]}  Nc6 {[%clk 0:01:33]} 23. Ne4 {[%clk 0:00:35]}  Be7 {[%clk 0:01:18]} 24. Nf3 {[%clk 0:00:23]}  h6 {[%clk 0:01:02]} 25. Kh1 {[%clk 0:00:23]}  Qf8 {[%clk 0:00:55]} 26. Bg3 {[%clk 0:00:22]}  Bb4 {[%clk 0:00:51]} 27. Rf1 {[%clk 0:00:23]}  Ne7 {[%clk 0:00:50]} 28. Ne5 {[%clk 0:00:22]}  Nf5 {[%clk 0:00:44]} 29. Bf2 {[%clk 0:00:22]}  Ne8 {[%clk 0:00:43]} 30. c5 {[%clk 0:00:21]}  bxc5 {[%clk 0:00:39]} 31. dxc5 {[%clk 0:00:21]}  Rd5 {[%clk 0:00:16]} 32. c6 {[%clk 0:00:20]}  f6 {[%clk 0:00:11]} 33. Nd7 {[%clk 0:00:19]}  Qf7 {[%clk 0:00:09]} 34. Qa6 {[%clk 0:00:19]}  Rc7 {[%clk 0:00:07]} 35. Qa8 {[%clk 0:00:18]}  Kh7 {[%clk 0:00:07]} 36. Nb6 {[%clk 0:00:17]}  Ned6 {[%clk 0:00:04]} 37. Nxd5 {[%clk 0:00:16]}  exd5 {[%clk 0:00:04]} 38. Nxd6 {[%clk 0:00:16]}  Bxd6 {[%clk 0:00:05]} 39. Bb6 {[%clk 0:00:16]}  Ng3+ {[%clk 0:00:02]} 40. Kg1 {[%clk 0:00:16]}  Nxf1 {[%clk 0:00:03]} 41. Bxc7 {[%clk 0:00:15]}  Qxc7 {[%clk 0:00:03]} 42. Rxf1 {[%clk 0:00:13]}  Bc5+ {[%clk 0:00:04]} 43. Kh1 {[%clk 0:00:13]}  Qe7 {[%clk 0:00:02]} 44. Qb7 {[%clk 0:00:12]}  Qe2 {[%clk 0:00:03]} 45. Qb1+ {[%clk 0:00:12]} 1-0


[Site "https://www.chess.com"]

[Event "Titled Tuesday Blitz July 05 Early 2022"]
[White "Kovalev, Vladislav"]
[Black "Andreikin, Dmitry"]
[WhiteFideId "13504398"]
[BlackFideId "4158814"]
[WhiteElo "2530"]
[BlackElo "2736"]
[Result "0-1"]
[Round "08"]
[TimeControl "180+1"]
[Date "2022.07.05"]
[WhiteClock "0:00:01"]
[BlackClock "0:00:03"]

1. e4 {[%clk 0:03:00]}  c5 {[%clk 0:03:00]} 2. Be2 {[%clk 0:02:59]}  g6 {[%clk 0:02:57]} 3. d3 {[%clk 0:02:59]}  Bg7 {[%clk 0:02:57]} 4. f4 {[%clk 0:03:00]}  Nc6 {[%clk 0:02:56]} 5. Nf3 {[%clk 0:03:00]}  d5 {[%clk 0:02:50]} 6. c3 {[%clk 0:03:01]}  Nf6 {[%clk 0:02:37]} 7. e5 {[%clk 0:03:00]}  Ng4 {[%clk 0:02:37]} 8. h3 {[%clk 0:02:55]}  Nh6 {[%clk 0:02:37]} 9. Be3 {[%clk 0:02:50]}  d4 {[%clk 0:02:27]} 10. Bf2 {[%clk 0:02:50]}  Nf5 {[%clk 0:02:21]} 11. g4 {[%clk 0:02:49]}  Ne3 {[%clk 0:02:20]} 12. Bxe3 {[%clk 0:02:50]}  dxe3 {[%clk 0:02:21]} 13. Qc1 {[%clk 0:02:50]}  b6 {[%clk 0:02:14]} 14. Qxe3 {[%clk 0:02:49]}  Bb7 {[%clk 0:02:14]} 15. Nbd2 {[%clk 0:02:49]}  Qc7 {[%clk 0:02:12]} 16. Ne4 {[%clk 0:02:39]}  O-O-O {[%clk 0:02:12]} 17. O-O-O {[%clk 0:02:38]}  f6 {[%clk 0:01:59]} 18. Kb1 {[%clk 0:02:18]}  fxe5 {[%clk 0:01:53]} 19. f5 {[%clk 0:02:19]}  Kb8 {[%clk 0:01:49]} 20. Nh4 {[%clk 0:02:11]}  gxf5 {[%clk 0:01:32]} 21. Nxf5 {[%clk 0:02:11]}  Bf8 {[%clk 0:01:32]} 22. Rhf1 {[%clk 0:01:59]}  e6 {[%clk 0:01:32]} 23. Nh6 {[%clk 0:01:48]}  Bxh6 {[%clk 0:01:21]} 24. Qxh6 {[%clk 0:01:49]}  c4 {[%clk 0:01:21]} 25. Qe3 {[%clk 0:01:27]}  Na5 {[%clk 0:01:17]} 26. Ng5 {[%clk 0:01:04]}  Rhe8 {[%clk 0:00:56]} 27. Nf7 {[%clk 0:00:37]}  Rd5 {[%clk 0:00:54]} 28. Bf3 {[%clk 0:00:18]}  cxd3 {[%clk 0:00:30]} 29. Bxd5 {[%clk 0:00:17]}  exd5 {[%clk 0:00:31]} 30. Qxd3 {[%clk 0:00:17]}  Nc4 {[%clk 0:00:28]} 31. b3 {[%clk 0:00:17]}  e4 {[%clk 0:00:24]} 32. Qd4 {[%clk 0:00:10]}  e3 {[%clk 0:00:24]} 33. Rfe1 {[%clk 0:00:06]}  Na3+ {[%clk 0:00:17]} 34. Kb2 {[%clk 0:00:06]}  Nb5 {[%clk 0:00:18]} 35. Qd3 {[%clk 0:00:07]}  a6 {[%clk 0:00:09]} 36. Ng5 {[%clk 0:00:05]}  Qc5 {[%clk 0:00:09]} 37. Nf3 {[%clk 0:00:05]}  Qa3+ {[%clk 0:00:07]} 38. Ka1 {[%clk 0:00:05]}  Rc8 {[%clk 0:00:05]} 39. Rc1 {[%clk 0:00:05]}  Qf8 {[%clk 0:00:04]} 40. Nd4 {[%clk 0:00:05]}  Nd6 {[%clk 0:00:03]} 41. Rxe3 {[%clk 0:00:06]}  Ne4 {[%clk 0:00:03]} 42. Re2 {[%clk 0:00:05]}  Qa3 {[%clk 0:00:04]} 43. Rec2 {[%clk 0:00:05]}  Nc5 {[%clk 0:00:04]} 44. Qe3 {[%clk 0:00:05]}  a5 {[%clk 0:00:04]} 45. Nb5 {[%clk 0:00:06]}  Nxb3+ {[%clk 0:00:04]} 46. Kb1 {[%clk 0:00:06]}  Qa4 {[%clk 0:00:03]} 47. Qe5+ {[%clk 0:00:05]}  Ka8 {[%clk 0:00:03]} 48. Nc7+ {[%clk 0:00:05]}  Rxc7 {[%clk 0:00:02]} 49. Qxc7 {[%clk 0:00:04]}  Nxc1 {[%clk 0:00:02]} 50. Rxc1 {[%clk 0:00:04]}  Ka7 {[%clk 0:00:03]} 51. Qd6 {[%clk 0:00:04]}  Qb5+ {[%clk 0:00:02]} 52. Ka1 {[%clk 0:00:04]}  Qd3 {[%clk 0:00:02]} 53. Qe5 {[%clk 0:00:03]}  Qxh3 {[%clk 0:00:02]} 54. g5 {[%clk 0:00:03]}  Qd3 {[%clk 0:00:02]} 55. Re1 {[%clk 0:00:03]}  Qd2 {[%clk 0:00:02]} 56. Qe3 {[%clk 0:00:03]}  Qc2 {[%clk 0:00:02]} 57. Rc1 {[%clk 0:00:04]}  Qa4 {[%clk 0:00:02]} 58. Kb1 {[%clk 0:00:03]}  Qc6 {[%clk 0:00:02]} 59. Qd4 {[%clk 0:00:03]}  Qg6+ {[%clk 0:00:02]} 60. Ka1 {[%clk 0:00:04]}  Qxg5 {[%clk 0:00:03]} 61. Rb1 {[%clk 0:00:05]}  Qg6 {[%clk 0:00:03]} 62. Rg1 {[%clk 0:00:05]}  Qc6 {[%clk 0:00:04]} 63. Rh1 {[%clk 0:00:04]}  h6 {[%clk 0:00:04]} 64. Rb1 {[%clk 0:00:04]}  Ba6 {[%clk 0:00:04]} 65. Re1 {[%clk 0:00:03]}  Bc4 {[%clk 0:00:04]} 66. Re7+ {[%clk 0:00:03]}  Ka6 {[%clk 0:00:04]} 67. Qh8 {[%clk 0:00:02]}  Kb5 {[%clk 0:00:03]} 68. Qd4 {[%clk 0:00:02]}  Ka6 {[%clk 0:00:03]} 69. Re1 {[%clk 0:00:03]}  Qd6 {[%clk 0:00:03]} 70. Rb1 {[%clk 0:00:03]}  h5 {[%clk 0:00:04]} 71. Rb2 {[%clk 0:00:02]}  Qe6 {[%clk 0:00:04]} 72. Rb1 {[%clk 0:00:03]}  Qh6 {[%clk 0:00:04]} 73. Re1 {[%clk 0:00:01]}  h4 {[%clk 0:00:03]} 74. Qe3 {[%clk 0:00:01]}  Qf6 {[%clk 0:00:03]} 75. Qe5 {[%clk 0:00:01]}  Qf2 {[%clk 0:00:03]} 0-1


[Site "https://www.chess.com"]

[Event "Titled Tuesday Blitz July 05 Early 2022"]
[White "Lazavik, Denis"]
[Black "Ramirez, Alejandro"]
[WhiteFideId "13515110"]
[BlackFideId "6500617"]
[WhiteElo "2437"]
[BlackElo "2694"]
[Result "1-0"]
[Round "08"]
[TimeControl "180+1"]
[Date "2022.07.05"]
[WhiteClock "0:00:08"]
[BlackClock "0:00:19"]

1. d4 {[%clk 0:03:00]}  Nf6 {[%clk 0:02:59]} 2. c4 {[%clk 0:03:01]}  c5 {[%clk 0:02:59]} 3. d5 {[%clk 0:03:01]}  b5 {[%clk 0:02:59]} 4. cxb5 {[%clk 0:03:01]}  a6 {[%clk 0:03:00]} 5. e3 {[%clk 0:03:01]}  axb5 {[%clk 0:02:58]} 6. Bxb5 {[%clk 0:03:02]}  Qa5+ {[%clk 0:02:58]} 7. Nc3 {[%clk 0:03:02]}  Bb7 {[%clk 0:02:59]} 8. Bd2 {[%clk 0:03:01]}  Qb6 {[%clk 0:02:57]} 9. a4 {[%clk 0:03:01]}  Nxd5 {[%clk 0:02:56]} 10. Nf3 {[%clk 0:03:01]}  Qg6 {[%clk 0:02:53]} 11. O-O {[%clk 0:02:44]}  e6 {[%clk 0:02:53]} 12. Nxd5 {[%clk 0:02:15]}  Bxd5 {[%clk 0:02:52]} 13. Qe2 {[%clk 0:02:09]}  Be7 {[%clk 0:02:48]} 14. Rfe1 {[%clk 0:02:09]}  Be4 {[%clk 0:02:44]} 15. Bc3 {[%clk 0:02:02]}  O-O {[%clk 0:02:41]} 16. Red1 {[%clk 0:02:02]}  d5 {[%clk 0:02:38]} 17. Bd3 {[%clk 0:02:03]}  Nc6 {[%clk 0:02:34]} 18. Bxe4 {[%clk 0:02:02]}  Qxe4 {[%clk 0:02:35]} 19. Nd2 {[%clk 0:02:02]}  Qg6 {[%clk 0:02:20]} 20. Nf3 {[%clk 0:02:02]}  Rfb8 {[%clk 0:02:16]} 21. a5 {[%clk 0:01:59]}  Bf6 {[%clk 0:02:11]} 22. a6 {[%clk 0:01:56]}  h6 {[%clk 0:02:09]} 23. Rdc1 {[%clk 0:01:55]}  Rb6 {[%clk 0:02:07]} 24. Bxf6 {[%clk 0:01:50]}  Qxf6 {[%clk 0:02:07]} 25. Rxc5 {[%clk 0:01:51]}  Rxb2 {[%clk 0:02:03]} 26. Qf1 {[%clk 0:01:50]}  Rb6 {[%clk 0:01:56]} 27. h3 {[%clk 0:01:40]}  Nb4 {[%clk 0:01:42]} 28. a7 {[%clk 0:01:21]}  Rb7 {[%clk 0:01:42]} 29. Rca5 {[%clk 0:00:59]}  Nc6 {[%clk 0:01:27]} 30. Ra6 {[%clk 0:00:53]}  Raxa7 {[%clk 0:01:27]} 31. Rc1 {[%clk 0:00:45]}  Ne5 {[%clk 0:01:19]} 32. Nxe5 {[%clk 0:00:43]}  Qxe5 {[%clk 0:01:19]} 33. Qd3 {[%clk 0:00:43]}  g6 {[%clk 0:01:16]} 34. Rxa7 {[%clk 0:00:42]}  Rxa7 {[%clk 0:01:17]} 35. g3 {[%clk 0:00:42]}  Kg7 {[%clk 0:01:15]} 36. Kg2 {[%clk 0:00:42]}  Ra2 {[%clk 0:01:15]} 37. Rd1 {[%clk 0:00:39]}  Qb2 {[%clk 0:01:14]} 38. Qd4+ {[%clk 0:00:38]}  Qxd4 {[%clk 0:01:14]} 39. Rxd4 {[%clk 0:00:39]}  Kf6 {[%clk 0:01:12]} 40. h4 {[%clk 0:00:39]}  Ke5 {[%clk 0:01:11]} 41. Rf4 {[%clk 0:00:37]}  f5 {[%clk 0:01:11]} 42. Rb4 {[%clk 0:00:38]}  g5 {[%clk 0:01:09]} 43. hxg5 {[%clk 0:00:38]}  hxg5 {[%clk 0:01:10]} 44. Rb8 {[%clk 0:00:38]}  g4 {[%clk 0:01:09]} 45. Rb6 {[%clk 0:00:39]}  Rd2 {[%clk 0:01:09]} 46. Rc6 {[%clk 0:00:39]}  Ra2 {[%clk 0:00:57]} 47. Rb6 {[%clk 0:00:39]}  Ra4 {[%clk 0:00:57]} 48. Rc6 {[%clk 0:00:39]}  Rc4 {[%clk 0:00:58]} 49. Rb6 {[%clk 0:00:39]}  Kf6 {[%clk 0:00:58]} 50. Ra6 {[%clk 0:00:39]}  Ke7 {[%clk 0:00:58]} 51. Ra7+ {[%clk 0:00:40]}  Kd6 {[%clk 0:00:59]} 52. Ra6+ {[%clk 0:00:40]}  Rc6 {[%clk 0:00:59]} 53. Ra8 {[%clk 0:00:41]}  Ke5 {[%clk 0:01:00]} 54. Ra4 {[%clk 0:00:39]}  Kd6 {[%clk 0:00:59]} 55. Ra8 {[%clk 0:00:39]}  Ke7 {[%clk 0:00:58]} 56. Ra7+ {[%clk 0:00:39]}  Kf6 {[%clk 0:00:58]} 57. Ra5 {[%clk 0:00:39]}  Rb6 {[%clk 0:00:57]} 58. Rc5 {[%clk 0:00:39]}  Ke5 {[%clk 0:00:57]} 59. Ra5 {[%clk 0:00:39]}  Ke4 {[%clk 0:00:57]} 60. Ra4+ {[%clk 0:00:39]}  Kd3 {[%clk 0:00:57]} 61. Ra3+ {[%clk 0:00:39]}  Kc2 {[%clk 0:00:57]} 62. Ra2+ {[%clk 0:00:39]}  Kb3 {[%clk 0:00:56]} 63. Ra5 {[%clk 0:00:40]}  Rd6 {[%clk 0:00:56]} 64. Kf1 {[%clk 0:00:38]}  Rc6 {[%clk 0:00:48]} 65. Ra8 {[%clk 0:00:37]}  Kc2 {[%clk 0:00:45]} 66. Rd8 {[%clk 0:00:36]}  Kd3 {[%clk 0:00:44]} 67. Re8 {[%clk 0:00:34]}  Ke4 {[%clk 0:00:44]} 68. Kg2 {[%clk 0:00:33]}  e5 {[%clk 0:00:44]} 69. Re7 {[%clk 0:00:33]}  Rc2 {[%clk 0:00:43]} 70. Re8 {[%clk 0:00:33]}  Rd2 {[%clk 0:00:42]} 71. Re7 {[%clk 0:00:33]}  Rb2 {[%clk 0:00:33]} 72. Re8 {[%clk 0:00:33]}  Rb5 {[%clk 0:00:34]} 73. Re7 {[%clk 0:00:33]}  Rc5 {[%clk 0:00:32]} 74. Re8 {[%clk 0:00:33]}  Rc6 {[%clk 0:00:30]} 75. Re7 {[%clk 0:00:34]}  Rd6 {[%clk 0:00:30]} 76. Re8 {[%clk 0:00:34]}  Rd7 {[%clk 0:00:31]} 77. Re6 {[%clk 0:00:34]}  d4 {[%clk 0:00:32]} 78. exd4 {[%clk 0:00:34]}  Kxd4 {[%clk 0:00:32]} 79. Re8 {[%clk 0:00:34]}  Ke4 {[%clk 0:00:31]} 80. Ra8 {[%clk 0:00:33]}  Rd4 {[%clk 0:00:32]} 81. Re8 {[%clk 0:00:33]}  Rb4 {[%clk 0:00:32]} 82. Re7 {[%clk 0:00:33]}  Rb2 {[%clk 0:00:32]} 83. Re8 {[%clk 0:00:33]}  Rc2 {[%clk 0:00:33]} 84. Re7 {[%clk 0:00:33]}  Rc5 {[%clk 0:00:33]} 85. Re8 {[%clk 0:00:33]}  Kd3 {[%clk 0:00:33]} 86. Rf8 {[%clk 0:00:30]}  e4 {[%clk 0:00:33]} 87. Ra8 {[%clk 0:00:29]}  Rc2 {[%clk 0:00:31]} 88. Kf1 {[%clk 0:00:27]}  Rc1+ {[%clk 0:00:29]} 89. Kg2 {[%clk 0:00:27]}  Rc2 {[%clk 0:00:29]} 90. Kf1 {[%clk 0:00:27]}  Rc1+ {[%clk 0:00:25]} 91. Kg2 {[%clk 0:00:27]}  Ke2 {[%clk 0:00:25]} 92. Ra2+ {[%clk 0:00:26]}  Ke1 {[%clk 0:00:26]} 93. Kg1 {[%clk 0:00:13]}  Rd1 {[%clk 0:00:25]} 94. Ra5 {[%clk 0:00:13]}  Rd3 {[%clk 0:00:24]} 95. Rxf5 {[%clk 0:00:10]}  Rf3 {[%clk 0:00:25]} 96. Re5 {[%clk 0:00:11]}  Rxf2 {[%clk 0:00:25]} 97. Rxe4+ {[%clk 0:00:11]}  Re2 {[%clk 0:00:26]} 98. Rxg4 {[%clk 0:00:09]}  Re3 {[%clk 0:00:25]} 99. Kg2 {[%clk 0:00:08]}  Re8 {[%clk 0:00:25]} 100. Rf4 {[%clk 0:00:06]}  Ke2 {[%clk 0:00:24]} 101. g4 {[%clk 0:00:07]}  Ke3 {[%clk 0:00:24]} 102. Kg3 {[%clk 0:00:07]}  Rg8 {[%clk 0:00:23]} 103. Rf5 {[%clk 0:00:07]}  Ke4 {[%clk 0:00:23]} 104. Ra5 {[%clk 0:00:08]}  Ke3 {[%clk 0:00:21]} 105. g5 {[%clk 0:00:08]}  Ke4 {[%clk 0:00:21]} 106. Kg4 {[%clk 0:00:09]}  Rf8 {[%clk 0:00:18]} 107. g6 {[%clk 0:00:08]}  Rf1 {[%clk 0:00:18]} 108. Kg5 {[%clk 0:00:09]}  Rg1+ {[%clk 0:00:19]} 109. Kf6 {[%clk 0:00:08]} 1-0


[Site "https://www.chess.com"]

[Event "Titled Tuesday Blitz July 05 Early 2022"]
[White "Leisch, Lukas"]
[Black "Agasarov, Benik"]
[WhiteFideId "1632094"]
[BlackFideId "13314823"]
[WhiteElo "2216"]
[BlackElo "2690"]
[Result "1-0"]
[Round "08"]
[TimeControl "180+1"]
[Date "2022.07.05"]
[WhiteClock "0:00:10"]
[BlackClock "0:01:04"]

1. b3 {[%clk 0:03:00]}  g6 {[%clk 0:02:59]} 2. Bb2 {[%clk 0:03:00]}  Nf6 {[%clk 0:02:59]} 3. g3 {[%clk 0:02:58]}  Bg7 {[%clk 0:02:59]} 4. Bg2 {[%clk 0:02:59]}  O-O {[%clk 0:03:00]} 5. e3 {[%clk 0:02:56]}  d5 {[%clk 0:02:57]} 6. Ne2 {[%clk 0:02:57]}  c5 {[%clk 0:02:57]} 7. O-O {[%clk 0:02:56]}  Nc6 {[%clk 0:02:58]} 8. c4 {[%clk 0:02:51]}  d4 {[%clk 0:02:57]} 9. exd4 {[%clk 0:02:47]}  cxd4 {[%clk 0:02:57]} 10. Bxc6 {[%clk 0:02:42]}  bxc6 {[%clk 0:02:56]} 11. Bxd4 {[%clk 0:02:42]}  Bg4 {[%clk 0:02:55]} 12. f3 {[%clk 0:02:40]}  Bh3 {[%clk 0:02:52]} 13. Re1 {[%clk 0:02:38]}  e5 {[%clk 0:02:37]} 14. Bxe5 {[%clk 0:02:15]}  Re8 {[%clk 0:02:36]} 15. d4 {[%clk 0:02:05]}  c5 {[%clk 0:02:32]} 16. Nf4 {[%clk 0:02:02]}  cxd4 {[%clk 0:02:20]} 17. Nxh3 {[%clk 0:01:54]}  d3 {[%clk 0:02:21]} 18. Nc3 {[%clk 0:01:41]}  Rxe5 {[%clk 0:02:19]} 19. Rxe5 {[%clk 0:01:41]}  Qd4+ {[%clk 0:02:20]} 20. Nf2 {[%clk 0:01:38]}  Qxe5 {[%clk 0:02:19]} 21. Qxd3 {[%clk 0:01:30]}  Nh5 {[%clk 0:02:19]} 22. Rc1 {[%clk 0:01:24]}  Re8 {[%clk 0:02:18]} 23. f4 {[%clk 0:01:18]}  Qc5 {[%clk 0:02:11]} 24. Ne4 {[%clk 0:01:10]}  Qa3 {[%clk 0:02:09]} 25. Rc2 {[%clk 0:01:00]}  Qa5 {[%clk 0:01:59]} 26. Qd2 {[%clk 0:00:54]}  Qf5 {[%clk 0:01:54]} 27. g4 {[%clk 0:00:49]}  Qxf4 {[%clk 0:01:38]} 28. gxh5 {[%clk 0:00:50]}  Qf3 {[%clk 0:01:36]} 29. Qe2 {[%clk 0:00:38]}  Qf5 {[%clk 0:01:22]} 30. Nf6+ {[%clk 0:00:32]}  Bxf6 {[%clk 0:01:22]} 31. Qxe8+ {[%clk 0:00:32]}  Kg7 {[%clk 0:01:23]} 32. Qe4 {[%clk 0:00:27]}  Qg5+ {[%clk 0:01:23]} 33. Qg4 {[%clk 0:00:26]}  Qc5 {[%clk 0:01:23]} 34. h6+ {[%clk 0:00:25]}  Kxh6 {[%clk 0:01:21]} 35. Rd2 {[%clk 0:00:21]}  Kg7 {[%clk 0:01:21]} 36. Rd7 {[%clk 0:00:20]}  Qe3 {[%clk 0:01:20]} 37. Qe4 {[%clk 0:00:17]}  Qc1+ {[%clk 0:01:21]} 38. Kg2 {[%clk 0:00:15]}  Qg5+ {[%clk 0:01:21]} 39. Qg4 {[%clk 0:00:12]}  Qe3 {[%clk 0:01:18]} 40. Qf3 {[%clk 0:00:11]}  Qg5+ {[%clk 0:01:18]} 41. Qg3 {[%clk 0:00:11]}  Qf5 {[%clk 0:01:17]} 42. Rxa7 {[%clk 0:00:11]}  Bd4 {[%clk 0:01:17]} 43. Re7 {[%clk 0:00:09]}  Qf6 {[%clk 0:01:14]} 44. Re4 {[%clk 0:00:08]}  Bc5 {[%clk 0:01:12]} 45. Qf3 {[%clk 0:00:07]}  Qg5+ {[%clk 0:01:13]} 46. Rg4 {[%clk 0:00:07]}  Qc1 {[%clk 0:01:10]} 47. Qf4 {[%clk 0:00:06]}  Qa1 {[%clk 0:01:06]} 48. Rh4 {[%clk 0:00:06]}  Be7 {[%clk 0:01:02]} 49. Qh6+ {[%clk 0:00:06]}  Kf6 {[%clk 0:01:00]} 50. Rf4+ {[%clk 0:00:06]}  Ke6 {[%clk 0:00:59]} 51. Re4+ {[%clk 0:00:07]}  Kd7 {[%clk 0:00:59]} 52. Qd2+ {[%clk 0:00:07]}  Ke8 {[%clk 0:00:57]} 53. Qe2 {[%clk 0:00:08]}  Qf6 {[%clk 0:00:57]} 54. Rxe7+ {[%clk 0:00:08]}  Qxe7 {[%clk 0:00:58]} 55. Qxe7+ {[%clk 0:00:08]}  Kxe7 {[%clk 0:00:58]} 56. a4 {[%clk 0:00:08]}  Kd6 {[%clk 0:00:59]} 57. a5 {[%clk 0:00:08]}  Kc5 {[%clk 0:01:00]} 58. a6 {[%clk 0:00:09]}  Kb6 {[%clk 0:01:01]} 59. Kf3 {[%clk 0:00:08]}  Kxa6 {[%clk 0:01:02]} 60. Ke4 {[%clk 0:00:09]}  Ka5 {[%clk 0:01:02]} 61. Kd5 {[%clk 0:00:09]}  Kb4 {[%clk 0:01:03]} 62. c5 {[%clk 0:00:09]}  Kb5 {[%clk 0:01:03]} 63. c6 {[%clk 0:00:09]}  Kb6 {[%clk 0:01:04]} 64. Kd6 {[%clk 0:00:10]}  Ka7 {[%clk 0:01:04]} 65. Kd7 {[%clk 0:00:10]} 1-0


[Site "https://www.chess.com"]

[Event "Titled Tuesday Blitz July 05 Early 2022"]
[White "Martinez Alcantara, Jose Eduardo"]
[Black "Mitrabha, Guha"]
[WhiteFideId "3805662"]
[BlackFideId "5057000"]
[WhiteElo "2703"]
[BlackElo "2499"]
[Result "0-1"]
[Round "08"]
[TimeControl "180+1"]
[Date "2022.07.05"]
[WhiteClock "0:00:07"]
[BlackClock "0:00:03"]

1. e4 {[%clk 0:03:00]}  c6 {[%clk 0:02:58]} 2. d4 {[%clk 0:02:59]}  d5 {[%clk 0:02:58]} 3. e5 {[%clk 0:03:00]}  Bf5 {[%clk 0:02:57]} 4. h4 {[%clk 0:03:00]}  h5 {[%clk 0:02:57]} 5. Bd3 {[%clk 0:03:01]}  Bxd3 {[%clk 0:02:57]} 6. Qxd3 {[%clk 0:03:02]}  e6 {[%clk 0:02:58]} 7. Nf3 {[%clk 0:03:01]}  Qa5+ {[%clk 0:02:58]} 8. Nbd2 {[%clk 0:02:59]}  Qa6 {[%clk 0:02:59]} 9. c4 {[%clk 0:02:59]}  Ne7 {[%clk 0:03:00]} 10. O-O {[%clk 0:02:59]}  Nf5 {[%clk 0:03:01]} 11. Rd1 {[%clk 0:02:53]}  Bb4 {[%clk 0:02:59]} 12. b3 {[%clk 0:02:49]}  O-O {[%clk 0:02:57]} 13. Qc2 {[%clk 0:02:44]}  Nd7 {[%clk 0:02:56]} 14. Nf1 {[%clk 0:02:44]}  dxc4 {[%clk 0:02:43]} 15. bxc4 {[%clk 0:02:43]}  Nb6 {[%clk 0:02:43]} 16. Rb1 {[%clk 0:02:17]}  Be7 {[%clk 0:02:35]} 17. c5 {[%clk 0:02:10]}  Nd5 {[%clk 0:02:35]} 18. Bg5 {[%clk 0:02:02]}  b6 {[%clk 0:02:30]} 19. Bxe7 {[%clk 0:02:01]}  Ndxe7 {[%clk 0:02:30]} 20. N1d2 {[%clk 0:02:00]}  bxc5 {[%clk 0:02:16]} 21. dxc5 {[%clk 0:02:01]}  Rfd8 {[%clk 0:02:15]} 22. Ne4 {[%clk 0:02:01]}  Rd5 {[%clk 0:02:15]} 23. Nd6 {[%clk 0:01:58]}  Qa5 {[%clk 0:02:09]} 24. Rxd5 {[%clk 0:01:56]}  cxd5 {[%clk 0:02:07]} 25. Ng5 {[%clk 0:01:44]}  Rf8 {[%clk 0:01:43]} 26. g3 {[%clk 0:01:44]}  g6 {[%clk 0:01:39]} 27. c6 {[%clk 0:01:34]}  Nd4 {[%clk 0:01:36]} 28. Nb7 {[%clk 0:01:14]}  Qa6 {[%clk 0:01:10]} 29. Qc5 {[%clk 0:01:05]}  Nexc6 {[%clk 0:01:09]} 30. Nh7 {[%clk 0:00:41]}  Rb8 {[%clk 0:01:00]} 31. Nf6+ {[%clk 0:00:41]}  Kg7 {[%clk 0:00:59]} 32. Nd7 {[%clk 0:00:42]}  Rc8 {[%clk 0:00:37]} 33. Nd6 {[%clk 0:00:36]}  Rd8 {[%clk 0:00:36]} 34. Nf6 {[%clk 0:00:31]}  Qd3 {[%clk 0:00:12]} 35. Nde8+ {[%clk 0:00:31]}  Rxe8 {[%clk 0:00:11]} 36. Nxe8+ {[%clk 0:00:28]}  Kh7 {[%clk 0:00:11]} 37. Nf6+ {[%clk 0:00:12]}  Kg7 {[%clk 0:00:11]} 38. Ne8+ {[%clk 0:00:05]}  Kh7 {[%clk 0:00:11]} 39. Qf8 {[%clk 0:00:06]}  Qxb1+ {[%clk 0:00:09]} 40. Kh2 {[%clk 0:00:06]}  Nf3+ {[%clk 0:00:06]} 41. Kg2 {[%clk 0:00:06]}  Ne1+ {[%clk 0:00:03]} 42. Kh2 {[%clk 0:00:07]}  Nf3+ {[%clk 0:00:04]} 43. Kh3 {[%clk 0:00:07]}  Qh1# {[%clk 0:00:03]} 0-1


[Site "https://www.chess.com"]